fUSD/lending_fUSD_20240612
["ID","MTS","AMOUNT","RATE_DAILY","PERIOD"]
[329206777,1718179876707,-606.45,0.00019589,2]
[329206778,1718179876717,-500.0,0.00019589,2]
[329206779,1718179876728,-500.0,0.00019589,2]
[329206780,1718179876739,-1056.74,0.00019589,2]
[329206781,1718179876751,-500.0,0.00019589,2]
[329206782,1718179876762,-540.46,0.00019589,2]
[329206783,1718179876772,-500.0,0.00019589,2]
[329206784,1718179876783,-500.0,0.00019589,2]
[329206785,1718179876793,-500.0,0.00019589,2]
[329206786,1718179876823,-578.43,0.00019589,2]
[329206787,1718179876833,-500.0,0.00019589,2]
[329206788,1718179876844,-1024.84,0.00019589,2]
[329206789,1718179876856,-500.0,0.00019589,2]
[329206790,1718179876868,-500.0,0.00019589,2]
[329206791,1718179876879,-500.0,0.00019589,2]
[329206792,1718179876892,-500.0,0.00019589,2]
[329206793,1718179876902,-500.0,0.00019589,2]
[329206794,1718179876913,-500.0,0.00019589,2]
[329206795,1718179876928,-500.0,0.00019589,2]
[329206796,1718179876939,-500.0,0.00019589,2]
[329206797,1718179876951,-500.0,0.00019589,2]
[329206798,1718179876962,-500.0,0.00019589,2]
[329206799,1718179876973,-500.0,0.00019589,2]
[329206800,1718179876984,-500.0,0.00019589,2]
[329206801,1718179876999,-536.07,0.00019589,2]
[329206802,1718179877010,-500.0,0.00019589,2]
[329206803,1718179877021,-500.0,0.00019589,2]
[329206804,1718179877031,-500.0,0.00019589,2]
[329206805,1718179877042,-500.0,0.00019589,2]
[329206806,1718179877054,-707.31,0.00019589,2]
[329206807,1718179877064,-1691.32,0.00019589,2]
[329206808,1718179877075,-500.0,0.00019589,2]
[329206809,1718179877085,-500.0,0.00019589,2]
[329206810,1718179877095,-500.0,0.00019589,2]
[329206811,1718179877106,-500.0,0.00019589,2]
[329206812,1718179877116,-500.0,0.00019589,2]
[329206813,1718179877128,-718.6,0.00019589,2]
[329206814,1718179877141,-1353.94,0.00019589,2]
[329206815,1718179877153,-676.25,0.00019589,2]
[329206816,1718179877164,-500.0,0.00019589,2]
[329206817,1718179877175,-500.0,0.00019589,2]
[329206818,1718179877185,-500.0,0.00019589,2]
[329206819,1718179877196,-836.78,0.00019589,2]
[329206820,1718179877207,-500.0,0.00019589,2]
[329206821,1718179877219,-150.0,0.00019589,2]
[329206822,1718179877231,-500.0,0.00019589,2]
[329206823,1718179877243,-500.0,0.00019589,2]
[329206824,1718179877257,-854.16,0.00019589,2]
[329206825,1718179877269,-500.0,0.00019589,2]
[329206826,1718179877280,-500.0,0.00019589,2]
[329206827,1718179877290,-835.22,0.00019589,2]
[329206828,1718179877301,-500.0,0.00019589,2]
[329206829,1718179877311,-500.0,0.00019589,2]
[329206830,1718179877322,-500.0,0.00019589,2]
[329206831,1718179877332,-500.0,0.00019589,2]
[329206832,1718179877343,-500.0,0.00019589,2]
[329206833,1718179877354,-587.12,0.00019589,2]
[329206834,1718179877364,-500.0,0.00019589,2]
[329206835,1718179877374,-500.0,0.00019589,2]
[329206836,1718179877385,-2397.48,0.00019589,2]
[329206837,1718179877396,-695.08,0.00019589,2]
[329206838,1718179877406,-500.0,0.00019589,2]
[329206839,1718179877417,-500.0,0.00019589,2]
[329206840,1718179877429,-500.0,0.00019589,2]
[329206841,1718179877441,-500.0,0.00019589,2]
[329206842,1718179877452,-500.0,0.00019589,2]
[329206843,1718179877466,-500.0,0.00019589,2]
[329206844,1718179877483,-500.0,0.00019589,2]
[329206845,1718179877496,-1151.02,0.00019589,2]
[329206846,1718179877509,-500.0,0.00019589,2]
[329206847,1718179877526,-500.0,0.00019589,2]
[329206848,1718179877538,-632.89,0.00019589,2]
[329206849,1718179877553,-562.35,0.00019589,2]
[329206850,1718179877574,-500.0,0.00019589,2]
[329206851,1718179877588,-814.74,0.00019589,2]
[329206852,1718179877601,-500.0,0.00019589,2]
[329206853,1718179877611,-533.88716969,0.00019589,2]
[329206854,1718179877624,-788.12,0.00019589,2]
[329206855,1718179877634,-692.77,0.00019589,2]
[329206856,1718179877645,-500.0,0.00019589,2]
[329206857,1718179877655,-500.0,0.00019589,2]
[329206858,1718179877665,-500.0,0.00019589,2]
[329206859,1718179877676,-801.05,0.00019589,2]
[329206860,1718179877688,-2426.35,0.00019589,2]
[329206861,1718179877703,-500.0,0.00019589,2]
[329206862,1718179877713,-500.0,0.00019589,2]
[329206863,1718179877723,-500.0,0.00019589,2]
[329206864,1718179877734,-667.95,0.00019589,2]
[329206865,1718179877745,-500.0,0.00019589,2]
[329206866,1718179877760,-701.84,0.00019589,2]
[329206867,1718179877771,-1312.22,0.00019589,2]
[329206868,1718179877781,-500.0,0.00019589,2]
[329206869,1718179877792,-855.19,0.00019589,2]
[329206870,1718179877829,-500.0,0.00019589,2]
[329206871,1718179877841,-500.0,0.00019589,2]
[329206872,1718179877858,-500.0,0.00019589,2]
[329206873,1718179877869,-5154.03,0.00019589,2]
[329206874,1718179877880,-500.0,0.00019589,2]
[329206875,1718179877890,-500.0,0.00019589,2]
[329206876,1718179877899,-571.46,0.00019589,2]
[329206877,1718179877910,-500.0,0.00019589,2]
[329206878,1718179877924,-1878.34,0.00019589,2]
[329206879,1718179877935,-500.0,0.00019589,2]
[329206880,1718179877945,-1104.84,0.00019589,2]
[329206881,1718179877956,-500.0,0.00019589,2]
[329206882,1718179877966,-500.0,0.00019589,2]
[329206883,1718179877976,-627.95,0.00019589,2]
[329206884,1718179877987,-1013.51,0.00019589,2]
[329206885,1718179878001,-500.0,0.00019589,2]
[329206886,1718179878012,-1682.34,0.00019589,2]
[329206887,1718179878023,-500.0,0.00019589,2]
[329206888,1718179878034,-500.0,0.00019589,2]
[329206889,1718179878046,-554.42,0.00019589,2]
[329206890,1718179878057,-500.0,0.00019589,2]
[329206891,1718179878068,-657.62,0.00019589,2]
[329206892,1718179878079,-556.25,0.00019589,2]
[329206893,1718179878090,-1495.23,0.00019589,2]
[329206894,1718179878100,-602.14,0.00019589,2]
[329206895,1718179878111,-1140.33,0.00019589,2]
[329206896,1718179878122,-1341.78,0.00019589,2]
[329206897,1718179878133,-500.0,0.00019589,2]
[329206898,1718179878144,-500.0,0.00019589,2]
[329206899,1718179878154,-786.61,0.00019589,2]
[329206900,1718179878165,-1464.63,0.00019589,2]
[329206901,1718179878176,-500.0,0.00019589,2]
[329206902,1718179878187,-389.4238968,0.00019589,2]
[329206903,1718179878197,-3094.25,0.00019589,2]
[329206904,1718179878207,-548.65,0.00019589,2]
[329206905,1718179878218,-729.37,0.00019589,2]
[329206906,1718179878228,-500.0,0.00019589,2]
[329206907,1718179878238,-500.0,0.00019589,2]
[329206908,1718179878249,-2263.73,0.00019589,2]
[329206909,1718179878260,-765.32,0.00019589,2]
[329206910,1718179878270,-500.0,0.00019589,2]
[329206911,1718179878280,-500.0,0.00019589,2]
[329206912,1718179878291,-500.0,0.00019589,2]
[329206913,1718179878301,-1702.33,0.00019589,2]
[329206914,1718179878311,-725.2,0.00019589,2]
[329206915,1718179878322,-1162.18,0.00019589,2]
[329206916,1718179878331,-702.53,0.00019589,2]
[329206917,1718179878342,-209.44108244,0.00019589,2]
[329206918,1718179878352,-1306.52,0.00019589,2]
[329206919,1718179878362,-500.0,0.00019589,2]
[329206920,1718179878373,-8345.51,0.00019589,2]
[329206921,1718179878383,-767.7,0.00019589,2]
[329206922,1718179878393,-669.7,0.00019589,2]
[329206923,1718179878403,-4404.89,0.00019589,2]
[329206924,1718179878413,-5540.12,0.00019589,2]
[329206925,1718179878423,-500.0,0.00019589,2]
[329206926,1718179878433,-3202.06,0.00019589,2]
[329206927,1718179878444,-645.85,0.00019589,2]
[329206928,1718179878454,-708.44,0.00019589,2]
[329206929,1718179878464,-1864.65,0.00019589,2]
[329206930,1718179878474,-650.82,0.00019589,2]
[329206931,1718179878485,-3275.86,0.00019589,2]
[329206932,1718179878495,-3174.73,0.00019589,2]
[329206933,1718179878507,-1358.37,0.00019589,2]
[329206934,1718179878517,-532.25,0.00019589,2]
[329206935,1718179878528,-758.42,0.00019589,2]
[329206936,1718179878538,-500.0,0.00019589,2]
[329206937,1718179878548,-1640.18,0.00019589,2]
[329206938,1718179878558,-6201.69,0.00019589,2]
[329206939,1718179878569,-500.0,0.00019589,2]
[329206940,1718179878579,-869.55,0.00019589,2]
[329206941,1718179878589,-1305.49,0.00019589,2]
[329206942,1718179878600,-500.0,0.00019589,2]
[329206943,1718179878610,-500.0,0.00019589,2]
[329206944,1718179878620,-500.0,0.00019589,2]
[329206945,1718179878632,-741.75,0.00019589,2]
[329206946,1718179878643,-500.0,0.00019589,2]
[329206947,1718179878653,-1607.87,0.00019589,2]
[329206948,1718179878663,-500.0,0.00019589,2]
[329206949,1718179878674,-2431.96,0.00019589,2]
[329206950,1718179878685,-3330.66,0.00019589,2]
[329206951,1718179878695,-500.0,0.00019589,2]
[329206952,1718179878706,-13640.9,0.00019589,2]
[329206953,1718179878716,-500.0,0.00019589,2]
[329206954,1718179878728,-959.76,0.00019589,2]
[329206955,1718179878738,-985.74,0.00019589,2]
[329206956,1718179878753,-20922.27,0.00019589,2]
[329206957,1718179878763,-781.81,0.00019589,2]
[329206958,1718179878774,-2448.83,0.00019589,2]
[329206959,1718179878784,-646.05,0.00019589,2]
[329206960,1718179878794,-500.0,0.00019589,2]
[329206961,1718179878830,-1431.31,0.00019589,2]
[329206962,1718179878844,-1683.61,0.00019589,2]
[329206963,1718179878854,-4769.74,0.00019589,2]
[329206964,1718179878865,-732.06,0.00019589,2]
[329206965,1718179878880,-500.0,0.00019589,2]
[329206966,1718179878890,-528.34,0.00019589,2]
[329206967,1718179878901,-752.97,0.00019589,2]
[329206968,1718179878921,-8377.53,0.00019589,2]
[329206969,1718179878932,-2216.48,0.00019589,2]
[329206970,1718179878945,-3266.79,0.00019589,2]
[329206971,1718179878958,-500.0,0.00019589,2]
[329206972,1718179878968,-850.88,0.00019589,2]
[329206973,1718179878979,-1690.57,0.00019589,2]
[329206974,1718179878990,-599.3,0.00019589,2]
[329206975,1718179879003,-1406.49,0.00019589,2]
[329206976,1718179879015,-281.007948,0.00019589,2]
[329206977,1718179879026,-500.0,0.00019589,2]
[329206978,1718179879037,-2196.58,0.00019589,2]
[329206979,1718179879048,-1073.07,0.00019589,2]
[329206980,1718179879059,-2273.25,0.00019589,2]
[329206981,1718179879070,-798.97,0.00019589,2]
[329206982,1718179879081,-611.43,0.00019589,2]
[329206983,1718179879095,-946.15,0.00019589,2]
[329206984,1718179879115,-1156.44,0.00019589,2]
[329206985,1718179879125,-500.0,0.00019589,2]
[329206986,1718179879136,-1214.62,0.00019589,2]
[329206987,1718179879152,-1976.41,0.00019589,2]
[329206988,1718179879165,-500.0,0.00019589,2]
[329206989,1718179879235,-500.0,0.00019589,2]
[329206990,1718179879248,-500.0,0.00019589,2]
[329206991,1718179879262,-827.97,0.00019589,2]
[329206992,1718179879274,-2301.96,0.00019589,2]
[329206993,1718179879286,-500.0,0.00019589,2]
[329206994,1718179879297,-500.0,0.00019589,2]
[329206995,1718179879313,-1787.41,0.00019589,2]
[329206996,1718179879326,-712.85,0.00019589,2]
[329206997,1718179879341,-776.27,0.00019589,2]
[329206998,1718179879352,-2018.59,0.00019589,2]
[329206999,1718179879365,-570.61100837,0.00019589,2]
[329207000,1718179879379,-500.0,0.00019589,2]
[329207001,1718179879392,-3499.28,0.00019589,2]
[329207002,1718179879405,-500.0,0.00019589,2]
[329207003,1718179879417,-500.0,0.00019589,2]
[329207004,1718179879432,-2334.85,0.00019589,2]
[329207005,1718179879463,-1624.86,0.00019589,2]
[329207006,1718179879478,-1631.49,0.00019589,2]
[329207007,1718179879497,-500.0,0.00019589,2]
[329207008,1718179879510,-500.0,0.00019589,2]
[329207009,1718179879520,-522.67,0.00019589,2]
[329207010,1718179879536,-588.24,0.00019589,2]
[329207011,1718179879549,-581.13,0.00019589,2]
[329207012,1718179879562,-2080.69,0.00019589,2]
[329207013,1718179879592,-1563.88,0.00019589,2]
[329207014,1718179879603,-500.0,0.00019589,2]
[329207015,1718179879613,-579.52,0.00019589,2]
[329207016,1718179879625,-500.0,0.00019589,2]
[329207017,1718179879636,-815.55,0.00019589,2]
[329207018,1718179879647,-1713.36,0.00019589,2]
[329207019,1718179879659,-500.0,0.00019589,2]
[329207020,1718179879672,-630.18,0.00019589,2]
[329207021,1718179879685,-561.92,0.00019589,2]
[329207022,1718179879696,-862.44,0.00019589,2]
[329207023,1718179879735,-2346.36,0.00019589,2]
[329207024,1718179879748,-841.69,0.00019589,2]
[329207025,1718179879768,-1435.09,0.00019589,2]
[329207026,1718179879780,-500.0,0.00019589,2]
[329207027,1718179879790,-680.87,0.00019589,2]
[329207028,1718179879825,-500.0,0.00019589,2]
[329207029,1718179879837,-500.0,0.00019589,2]
[329207030,1718179879847,-500.0,0.00019589,2]
[329207031,1718179879862,-1088.82,0.00019589,2]
[329207032,1718179879874,-1513.03,0.00019589,2]
[329207033,1718179879886,-500.0,0.00019589,2]
[329207034,1718179879902,-598.23,0.00019589,2]
[329207035,1718179879920,-1610.34,0.00019589,2]
[329207036,1718179879932,-1146.85,0.00019589,2]
[329207037,1718179879942,-500.0,0.00019589,2]
[329207038,1718179879955,-2935.06,0.00019589,2]
[329207039,1718179879966,-1560.5,0.00019589,2]
[329207040,1718179879977,-1110.46,0.00019589,2]
[329207041,1718179879988,-3368.07,0.00019589,2]
[329207042,1718179880000,-500.0,0.00019589,2]
[329207043,1718179880011,-500.0,0.00019589,2]
[329207044,1718179880022,-1458.49,0.00019589,2]
[329207045,1718179880032,-1622.89,0.00019589,2]
[329207046,1718179880042,-500.0,0.00019589,2]
[329207047,1718179880052,-659.53,0.00019589,2]
[329207048,1718179880063,-500.0,0.00019589,2]
[329207049,1718179880073,-500.0,0.00019589,2]
[329207050,1718179880083,-500.0,0.00019589,2]
[329207051,1718179880094,-1850.34,0.00019589,2]
[329207052,1718179880105,-4181.59,0.00019589,2]
[329207053,1718179880116,-500.0,0.00019589,2]
[329207054,1718179880126,-500.0,0.00019589,2]
[329207055,1718179880136,-4021.68,0.00019589,2]
[329207056,1718179880146,-500.0,0.00019589,2]
[329207057,1718179880156,-6014.5,0.00019589,2]
[329207058,1718179880166,-654.73,0.00019589,2]
[329207059,1718179880176,-1952.21,0.00019589,2]
[329207060,1718179880187,-1117.79,0.00019589,2]
[329207061,1718179880197,-1297.98,0.00019589,2]
[329207062,1718179880207,-500.0,0.00019589,2]
[329207063,1718179880217,-564.66,0.00019589,2]
[329207064,1718179880227,-519.65,0.00019589,2]
[329207065,1718179880237,-1076.94,0.00019589,2]
[329207066,1718179880248,-1166.76,0.00019589,2]
[329207067,1718179880260,-2703.35,0.00019589,2]
[329207068,1718179880270,-1069.66,0.00019589,2]
[329207069,1718179880280,-500.0,0.00019589,2]
[329207070,1718179880290,-1867.83,0.00019589,2]
[329207071,1718179880300,-500.0,0.00019589,2]
[329207072,1718179880311,-565.97,0.00019589,2]
[329207073,1718179880322,-776.3,0.00019589,2]
[329207074,1718179880332,-1848.86,0.00019589,2]
[329207075,1718179880341,-2575.38,0.00019589,2]
[329207076,1718179880351,-521.86,0.00019589,2]
[329207077,1718179880361,-2537.91,0.00019589,2]
[329207078,1718179880371,-500.0,0.00019589,2]
[329207079,1718179880381,-1628.72,0.00019589,2]
[329207080,1718179880391,-500.0,0.00019589,2]
[329207081,1718179880401,-500.0,0.00019589,2]
[329207082,1718179880411,-783.13,0.00019589,2]
[329207083,1718179880421,-500.0,0.00019726,2]
[329207084,1718179880431,-778.55,0.00019726,2]
[329207085,1718179880441,-500.0,0.00019726,2]
[329207086,1718179880451,-500.0,0.00019726,2]
[329207087,1718179880461,-500.0,0.00019726,2]
[329207088,1718179880471,-274.9298743,0.00019726,2]
[329207089,1718179880481,-500.0,0.00019726,2]
[329207090,1718179880491,-500.0,0.00019726,2]
[329207091,1718179880501,-500.0,0.00019726,2]
[329207092,1718179880513,-500.0,0.00019726,2]
[329207093,1718179880523,-500.0,0.00019726,2]
[329207094,1718179880533,-500.0,0.00019726,2]
[329207095,1718179880543,-248.00764547,0.00019726,2]
[329207096,1718179880554,-500.0,0.00019726,2]
[329207097,1718179880563,-500.0,0.00019726,2]
[329207098,1718179880573,-500.0,0.00019726,2]
[329207099,1718179880583,-500.0,0.00019726,2]
[329207100,1718179880594,-592.95,0.00019726,2]
[329207101,1718179880604,-500.0,0.00019726,2]
[329207102,1718179880614,-500.0,0.00019726,2]
[329207103,1718179880624,-500.0,0.00019726,2]
[329207104,1718179880634,-764.7,0.00019726,2]
[329207105,1718179880645,-773.85,0.00019726,2]
[329207106,1718179880655,-500.0,0.00019726,2]
[329207107,1718179880667,-500.0,0.00019726,2]
[329207108,1718179880677,-500.0,0.00019726,2]
[329207109,1718179880687,-500.0,0.00019726,2]
[329207110,1718179880697,-500.0,0.00019726,2]
[329207111,1718179880707,-511.94973662,0.00019726,2]
[329207112,1718179880717,-500.0,0.00019726,2]
[329207113,1718179880728,-500.0,0.00019726,2]
[329207114,1718179880738,-667.4,0.00019726,2]
[329207115,1718179880748,-500.0,0.00019726,2]
[329207116,1718179880759,-500.0,0.00019726,2]
[329207117,1718179880769,-286.802636,0.00019726,2]
[329207118,1718179880779,-500.0,0.00019726,2]
[329207119,1718179880788,-500.0,0.00019726,2]
[329207120,1718179880804,-500.0,0.00019726,2]
[329207121,1718179880822,-500.0,0.00019726,2]
[329207122,1718179880832,-500.0,0.00019726,2]
[329207123,1718179880842,-555.87941729,0.00019726,2]
[329207124,1718179880852,-500.0,0.00019726,2]
[329207125,1718179880862,-500.0,0.00019726,2]
[329207126,1718179880872,-716.21,0.00019726,2]
[329207127,1718179880882,-500.0,0.00019726,2]
[329207128,1718179880892,-635.1847471,0.00019726,2]
[329207129,1718179880902,-500.0,0.00019726,2]
[329207130,1718179880913,-500.0,0.00019726,2]
[329207131,1718179880926,-697.14,0.00019726,2]
[329207132,1718179880937,-162.3720487,0.00019726,2]
[329207133,1718179880948,-500.0,0.00019726,2]
[329207134,1718179880961,-500.0,0.00019726,2]
[329207135,1718179880971,-154.90257841,0.00019726,2]
[329207136,1718179880981,-500.0,0.00019726,2]
[329207137,1718179880991,-500.0,0.00019726,2]
[329207138,1718179881003,-500.0,0.00019726,2]
[329207139,1718179881013,-483.99328009,0.00019726,2]
[329207140,1718179881023,-500.0,0.00019726,2]
[329207141,1718179881033,-500.0,0.00019726,2]
[329207142,1718179881044,-1218.09,0.00019726,2]
[329207143,1718179881054,-595.06259911,0.00019726,2]
[329207144,1718179881064,-500.0,0.00019726,2]
[329207145,1718179881074,-756.11,0.00019726,2]
[329207146,1718179881084,-500.0,0.00019726,2]
[329207147,1718179881094,-500.0,0.00019726,2]
[329207148,1718179881104,-651.5,0.00019726,2]
[329207149,1718179881114,-500.0,0.00019726,2]
[329207150,1718179881124,-500.0,0.00019726,2]
[329207151,1718179881134,-500.0,0.00019726,2]
[329207152,1718179881144,-2999.85,0.00019726,2]
[329207153,1718179881154,-500.0,0.00019726,2]
[329207154,1718179881163,-500.0,0.00019726,2]
[329207155,1718179881173,-500.0,0.00019726,2]
[329207156,1718179881184,-500.0,0.00019726,2]
[329207157,1718179881194,-544.30312048,0.00019726,2]
[329207158,1718179881204,-965.08,0.00019726,2]
[329207159,1718179881214,-500.0,0.00019726,2]
[329207160,1718179881224,-500.0,0.00019726,2]
[329207161,1718179881235,-500.0,0.00019726,2]
[329207162,1718179881245,-500.0,0.00019726,2]
[329207163,1718179881255,-500.0,0.00019726,2]
[329207164,1718179881265,-151.0,0.00019726,2]
[329207165,1718179881275,-500.0,0.00019726,2]
[329207166,1718179881285,-500.0,0.00019726,2]
[329207167,1718179881295,-500.0,0.00019726,2]
[329207168,1718179881305,-500.0,0.00019726,2]
[329207169,1718179881316,-500.0,0.00019726,2]
[329207170,1718179881326,-500.0,0.00019726,2]
[329207171,1718179881336,-500.0,0.00019726,2]
[329207172,1718179881345,-500.0,0.00019726,2]
[329207173,1718179881355,-500.0,0.00019726,2]
[329207174,1718179881365,-778.27,0.00019726,2]
[329207175,1718179881374,-500.0,0.00019726,2]
[329207176,1718179881384,-500.0,0.00019726,2]
[329207177,1718179881394,-500.0,0.00019726,2]
[329207178,1718179881404,-518.38,0.00019726,2]
[329207179,1718179881414,-500.0,0.00019726,2]
[329207180,1718179881423,-651.15,0.00019726,2]
[329207181,1718179881433,-544.62,0.00019726,2]
[329207182,1718179881443,-500.0,0.00019726,2]
[329207183,1718179881452,-500.0,0.00019726,2]
[329207184,1718179881462,-606.45,0.00019726,2]
[329207185,1718179881472,-500.0,0.00019726,2]
[329207186,1718179881481,-500.0,0.00019726,2]
[329207187,1718179881491,-1056.74,0.00019726,2]
[329207188,1718179881525,-500.0,0.00019726,2]
[329207189,1718179881559,-540.46,0.00019726,2]
[329207190,1718179881581,-500.0,0.00019726,2]
[329207191,1718179881603,-500.0,0.00019726,2]
[329207192,1718179881620,-500.0,0.00019726,2]
[329207193,1718179881646,-578.43,0.00019726,2]
[329207194,1718179881661,-500.0,0.00019726,2]
[329207195,1718179881672,-1024.84,0.00019726,2]
[329207196,1718179881684,-500.0,0.00019726,2]
[329207197,1718179881697,-500.0,0.00019726,2]
[329207198,1718179881708,-500.0,0.00019726,2]
[329207199,1718179881721,-500.0,0.00019726,2]
[329207200,1718179881761,-500.0,0.00019726,2]
[329207201,1718179881781,-500.0,0.00019726,2]
[329207202,1718179881797,-500.0,0.00019726,2]
[329207203,1718179881844,-500.0,0.00019726,2]
[329207204,1718179881865,-500.0,0.00019726,2]
[329207205,1718179881889,-500.0,0.00019726,2]
[329207206,1718179881904,-248.5068533,0.00019726,2]
[329207207,1718179881923,-500.0,0.00019726,2]
[329207208,1718179881947,-536.07,0.00019726,2]
[329207209,1718179881959,-500.0,0.00019726,2]
[329207210,1718179881971,-500.0,0.00019726,2]
[329207211,1718179881988,-500.0,0.00019726,2]
[329207212,1718179882005,-500.0,0.00019726,2]
[329207213,1718179882021,-707.31,0.00019726,2]
[329207214,1718179882033,-1691.32,0.00019726,2]
[329207215,1718179882055,-500.0,0.00019726,2]
[329207216,1718179882072,-500.0,0.00019726,2]
[329207217,1718179882086,-500.0,0.00019726,2]
[329207218,1718179882099,-453.32852224,0.00019726,2]
[329207219,1718179882114,-500.0,0.00019726,2]
[329207220,1718179882127,-718.6,0.00019726,2]
[329207221,1718179882140,-1353.94,0.00019726,2]
[329207222,1718179882152,-676.25,0.00019726,2]
[329207223,1718179882163,-500.0,0.00019726,2]
[329207224,1718179882174,-500.0,0.00019726,2]
[329207225,1718179882187,-500.0,0.00019726,2]
[329207226,1718179882209,-836.78,0.00019726,2]
[329207227,1718179882220,-500.0,0.00019726,2]
[329207228,1718179882231,-150.0,0.00019726,2]
[329207229,1718179882242,-500.0,0.00019726,2]
[329207230,1718179882255,-500.0,0.00019726,2]
[329207231,1718179882266,-854.16,0.00019726,2]
[329207232,1718179882283,-500.0,0.00019726,2]
[329207233,1718179882297,-500.0,0.00019726,2]
[329207234,1718179882311,-835.22,0.00019726,2]
[329207235,1718179882321,-500.0,0.00019726,2]
[329207236,1718179882336,-500.0,0.00019726,2]
[329207237,1718179882348,-500.0,0.00019726,2]
[329207238,1718179882359,-500.0,0.00019726,2]
[329207239,1718179882372,-500.0,0.00019726,2]
[329207240,1718179882382,-587.12,0.00019726,2]
[329207241,1718179882393,-500.0,0.00019726,2]
[329207242,1718179882404,-2397.48,0.00019726,2]
[329207243,1718179882417,-500.0,0.00019726,2]
[329207244,1718179882428,-500.0,0.00019726,2]
[329207245,1718179882439,-695.08,0.00019726,2]
[329207246,1718179882450,-500.0,0.00019726,2]
[329207247,1718179882464,-500.0,0.00019726,2]
[329207248,1718179882474,-500.0,0.00019726,2]
[329207249,1718179882486,-175.07492626,0.00019726,2]
[329207250,1718179882498,-500.0,0.00019726,2]
[329207251,1718179882515,-500.0,0.00019726,2]
[329207252,1718179882533,-1151.02,0.00019726,2]
[329207253,1718179882543,-500.0,0.00019726,2]
[329207254,1718179882554,-500.0,0.00019726,2]
[329207255,1718179882576,-632.89,0.00019726,2]
[329207256,1718179882586,-562.35,0.00019726,2]
[329207257,1718179882596,-500.0,0.00019726,2]
[329207258,1718179882617,-814.74,0.00019726,2]
[329207259,1718179882628,-500.0,0.00019726,2]
[329207260,1718179882639,-788.12,0.00019726,2]
[329207261,1718179882652,-692.77,0.00019726,2]
[329207262,1718179882667,-500.0,0.00019726,2]
[329207263,1718179882681,-500.0,0.00019726,2]
[329207264,1718179882695,-507.78325171,0.00019726,2]
[329207265,1718179882708,-801.05,0.00019726,2]
[329207266,1718179882724,-2426.35,0.00019726,2]
[329207267,1718179882735,-500.0,0.00019726,2]
[329207268,1718179882746,-500.0,0.00019726,2]
[329207269,1718179882758,-500.0,0.00019726,2]
[329207270,1718179882770,-667.95,0.00019726,2]
[329207271,1718179882781,-701.84,0.00019726,2]
[329207272,1718179882791,-1312.22,0.00019726,2]
[329207273,1718179882826,-500.0,0.00019726,2]
[329207274,1718179882837,-500.0,0.00019726,2]
[329207275,1718179882862,-855.19,0.00019726,2]
[329207276,1718179882879,-500.0,0.00019726,2]